fUSD/lending_fUSD_20240116
["ID","MTS","AMOUNT","RATE_DAILY","PERIOD"]
[311837717,1705446632902,-731.24,0.00022894,2]
[311837718,1705446632912,-728.25,0.00022897,2]
[311837719,1705446632921,-3480.52934761,0.00022898,2]
[311837720,1705446632932,-1046.5,0.00022898,2]
[311837721,1705446632943,-501.10653636,0.00022898,2]
[311837722,1705446632955,-390.72,0.00022898,2]
[311837723,1705446632987,-984.25671449,0.00022898,2]
[311837724,1705446632998,-3141.71755692,0.00022898,2]
[311837725,1705446633007,-2430.82073549,0.00022898,2]
[311837726,1705446633017,-371.90393021,0.00022898,2]
[311837727,1705446633026,-500.0,0.00022898,2]
[311837728,1705446633035,-1870.46197181,0.00022898,2]
[311837738,1705446638257,-155.0,0.000228,2]
[311837740,1705446638269,-245.66412819,0.00022898,2]
[311837742,1705446638280,-347.6176,0.00022898,2]
[311837744,1705446638289,-3451.71827181,0.00022898,2]
[311837746,1705446638318,-633.89410348,0.00022898,2]
[311837747,1705446638329,-2103.85061779,0.00022898,2]
[311837748,1705446638341,-33643.24990692,0.00022898,2]
[311837749,1705446638351,-722.99,0.00022899,2]
[311837750,1705446638360,-371.90393019,0.00022899,2]
[311837751,1705446638369,-7280.85616288,0.000229,2]
[311837752,1705446638380,-920.50000104,0.000229,2]
[311837753,1705446638392,-1254.79354,0.000229,2]
[311837754,1705446638416,-174.16832867,0.000229,2]
[311837755,1705446638425,-180.52865793,0.000229,2]
[311837756,1705446638434,-113.69759101,0.000229,2]
[311837757,1705446638490,-55.53143264,0.000229,2]
[311837758,1705446638499,-162.72658404,0.000229,2]
[311837759,1705446638508,-153.50507905,0.000229,2]
[311837760,1705446638518,-371.90393019,0.000229,2]
[311837761,1705446638527,-153.59719657,0.000229,2]
[311837762,1705446638537,-160.83536736,0.000229,2]
[311837763,1705446638546,-432.73995031,0.000229,2]
[311837764,1705446638555,-604.92913484,0.000229,2]
[311837765,1705446638587,-64.2001375,0.000229,2]
[311837766,1705446638596,-168.79154123,0.000229,2]
[311837767,1705446638606,-226.52,0.00022946,2]
[311837768,1705446638615,-313.44466476,0.00022975,2]
[311837769,1705446638624,-365.01915403,0.0002299,2]
[311837770,1705446638633,-365.01915403,0.0002299,2]
[311837771,1705446638644,-365.01915403,0.0002299,2]
[311837773,1705446638654,-160.3189589,0.00022996,2]
[311837775,1705446638663,-3452.5349827,0.00022996,2]
[311837776,1705446638673,-254.46419645,0.00022996,2]
[311837777,1705446638682,-757.4204291,0.00022996,2]
[311837778,1705446638691,-2135.27063704,0.00022996,2]
[311837779,1705446638700,-207.53906261,0.00022996,2]
[311837780,1705446638710,-3148.9186215,0.00022996,2]
[311837781,1705446638719,-640.58310254,0.00022996,2]
[311837782,1705446638729,-1103.9988527,0.00022996,2]
[311837784,1705446638738,-1381.27316703,0.00022997,2]
[311837786,1705446638747,-151.40117,0.00022997,3]
[311837789,1705446638757,-151.40117,0.00022997,3]
[311837791,1705446638767,-151.40117,0.00022997,3]
[311837793,1705446638776,-151.40117,0.00022997,3]
[311837794,1705446638786,-151.40117,0.00022997,3]
[311837797,1705446638795,-151.40117,0.00022997,3]
[311837798,1705446638804,-151.40117,0.00022997,3]
[311837799,1705446638814,-151.40117,0.00022997,3]
[311837800,1705446638823,-151.40117,0.00022997,3]
[311837801,1705446638833,-151.40117,0.00022997,3]
[311837802,1705446638842,-151.40117,0.00022997,3]
[311837803,1705446638852,-151.40117,0.00022997,3]
[311837804,1705446638861,-151.40117,0.00022997,3]
[311837805,1705446638870,-151.40117,0.00022997,3]
[311837807,1705446638879,-151.40117,0.00022997,3]
[311837809,1705446638889,-151.40117,0.00022997,3]
[311837811,1705446638898,-285880.84667858,0.00022998,2]
[311837813,1705446638908,-745.68030549,0.00022998,2]
[311837815,1705446638917,-207.39597,0.00022998,2]
[311837817,1705446638926,-155.0,0.00022998,2]
[311837819,1705446638935,-501.09834726,0.00022998,2]
[311837821,1705446638945,-256.04000001,0.00022998,2]
[311837823,1705446638953,-158.21757571,0.00022998,2]
[311837825,1705446638963,-2576.1,0.00022998,2]
[311837826,1705446638972,-475.03562767,0.00022998,2]
[311837829,1705446638982,-223.7152768,0.00022998,2]
[311837831,1705446638992,-242.20151819,0.00022998,2]
[311837833,1705446639001,-2820.11441043,0.00022998,2]
[311837835,1705446639010,-288.74305767,0.00022998,2]
[311837837,1705446639019,-306.94907181,0.00022998,2]
[311837839,1705446639028,-1904.88101016,0.00022998,2]
[311837840,1705446639038,-364.59644785,0.00022998,2]
[311837843,1705446639047,-525.07076067,0.00022998,2]
[311837844,1705446639056,-3100.63978328,0.00022998,2]
[311837846,1705446639066,-308.66623732,0.00022998,2]
[311837848,1705446639075,-587.81322623,0.00022998,2]
[311837850,1705446639085,-255.28226221,0.00022998,2]
[311837853,1705446639094,-2615.44247189,0.00022998,2]
[311837855,1705446639104,-2519.34700671,0.00022998,2]
[311837857,1705446639113,-1093.95113279,0.00022998,2]
[311837859,1705446639122,-23504.19784915,0.00022998,2]
[311837861,1705446639131,-203.876292,0.00022998,2]
[311837863,1705446639141,-731.3,0.00022998,2]
[311837865,1705446639151,-277.48596396,0.00022999,2]
[311837867,1705446639160,-25504.57242598,0.00022999,2]
[311837869,1705446639169,-513825.096009,0.00023,3]
[311837908,1705446639536,-459016.71132769,0.00023,3]
[311837912,1705446639579,-7976.59337912,0.00023,3]
[311837915,1705446639591,-8333.13137547,0.00023,3]
[311837917,1705446639602,-4689.73851574,0.00023,3]
[311837920,1705446639622,-348.29214401,0.00023,3]
[311837922,1705446639634,-292.0921017,0.00023,3]
[311837927,1705446639665,-42378.99999999,0.00023,3]
[311837929,1705446639677,-1694.65330512,0.00023,3]
[311838032,1705446640677,-1072.01781389,0.00023,3]
[311838034,1705446640689,-1068.52842727,0.00023,3]
[311838036,1705446640701,-17765.67699898,0.00023,3]
[311838039,1705446640712,-281.28456089,0.00023,3]
[311838041,1705446640724,-391.1015365,0.00023,3]
[311838043,1705446640735,-417.65,0.00023,3]
[311838045,1705446640747,-21635.28689034,0.00023,3]
[311838048,1705446640759,-281.58631847,0.00023,3]
[311838057,1705446640840,-14695.69462396,0.00023,3]
[311838060,1705446640851,-940.6822799,0.00023,3]
[311838113,1705446641340,-915.74877492,0.00023,3]
[311838115,1705446641351,-9165.86641374,0.00023,3]
[311838117,1705446641364,-326.29823559,0.00023,3]
[311838120,1705446641375,-1272.2649,0.00023,3]
[311838122,1705446641390,-303.47243232,0.00023,3]
[311838125,1705446641404,-1626.96654683,0.00023,3]
[311838127,1705446641416,-892.77987388,0.00023,3]
[311838129,1705446641427,-318.7475,0.00023,3]
[311838132,1705446641442,-2770.83552027,0.00023,3]
[311838134,1705446641453,-1465.30467193,0.00023,3]
[311838136,1705446641464,-640.64962494,0.00023,3]
[311838139,1705446641476,-2560.89551778,0.00023,3]
[311838141,1705446641487,-1000.70506026,0.00023,3]
[311838347,1705446643323,-2974.04155912,0.00023,3]
[311838373,1705446643520,-15910.00000316,0.00023,3]
[311838376,1705446643540,-4094.464261,0.00023,3]
[311838391,1705446643665,-1034.74532689,0.00023,3]
[311838393,1705446643676,-1786.08284388,0.00023,3]
[311838394,1705446643687,-898.9000003,0.00023,3]
[311838395,1705446643698,-2464.50716502,0.00023,3]
[311838396,1705446643710,-362.0466143,0.00023,3]
[311838397,1705446643727,-4646.46859161,0.00023,3]
[311838398,1705446643737,-3997.20138935,0.00023,3]
[311838399,1705446643836,-2497.54012756,0.00023,3]
[311838400,1705446643848,-1772.081541,0.00023,3]
[311838416,1705446646505,-284.57001048,0.00022999,2]
[311838417,1705446646515,-3947.97998952,0.00023,3]
[311838418,1705446646529,-12100.0,0.00023,3]
[311838419,1705446646542,-387.49873862,0.00023,3]
[311838420,1705446646554,-585.49045393,0.00023,3]
[311838421,1705446646576,-4211.3,0.00023,3]
[311838422,1705446646588,-775.80915422,0.00023,3]
[311838423,1705446646601,-366.49928082,0.00023,3]
[311838424,1705446646625,-910.07126,0.00023,3]
[311838425,1705446646638,-1886.71588147,0.00023,3]
[311838426,1705446646651,-4215.0,0.00023,3]
[311838427,1705446646663,-808.35570292,0.00023,3]
[311838428,1705446646675,-71110.7264477,0.00023,3]
[311838433,1705446646744,-506.70909012,0.00023,3]
[311838435,1705446646756,-5793.26410653,0.00023,3]
[311838453,1705446646863,-2342.10494889,0.00023,3]
[311838457,1705446646873,-3957.16671768,0.00023,3]
[311838490,1705446902552,150.0,0.00021847,2]
[311838491,1705446902574,26.94,0.00021847,2]
[311838494,1705447039608,166.84,0.00021754,2]
[311838495,1705447041738,150.0,0.00021754,2]
[311838496,1705447041758,150.0,0.00021754,2]
[311838497,1705447041779,130.4,0.00021754,2]
[311838498,1705447071059,150.0,0.00021991,2]
[311838499,1705447071081,150.0,0.00021991,2]
[311838500,1705447071102,150.0,0.00021991,2]
[311838501,1705447071124,150.0,0.00021991,2]
[311838502,1705447071150,150.0,0.00021991,2]
[311838503,1705447071173,150.0,0.00021991,2]
[311838504,1705447071483,-150.0,0.00021991,2]
[311838505,1705447071548,-150.0,0.00021991,2]
[311838506,1705447071581,-150.0,0.00021991,2]
[311838507,1705447071616,-150.0,0.00021991,2]
[311838508,1705447071654,-150.0,0.00021991,2]
[311838509,1705447071775,-150.0,0.00021991,2]
[311838510,1705447071819,-150.0,0.00021991,2]
[311838511,1705447071862,-150.0,0.00021991,2]
[311838512,1705447071888,-150.0,0.00021991,2]
[311838513,1705447071924,-150.0,0.00021991,2]
[311838514,1705447071961,-150.0,0.00021991,2]
[311838515,1705447072004,-150.0,0.00021991,2]
[311838516,1705447072036,-150.0,0.00021991,2]
[311838517,1705447072069,-150.0,0.00021991,2]
[311838518,1705447072105,-150.0,0.00021991,2]
[311838519,1705447072142,-150.0,0.00021991,2]
[311838520,1705447072187,-28.19103668,0.00021991,2]
[311838521,1705447081800,194.76896332,0.00021991,2]
[311838522,1705447087824,155.0,0.0002199,2]
[311838523,1705447106371,674.49,0.00021845,2]
[311838524,1705447110348,487.77732636,0.0002199,2]
[311838525,1705447112873,190.31,0.00021857,2]
[311838526,1705447118247,242.40849757,0.0002199,2]
[311838527,1705447121937,5213.49776909,0.0002199,2]
[311838528,1705447147911,250.0,0.00021858,2]
[311838529,1705447182138,200.0,0.0002183,2]
[311838530,1705447195913,157.65,0.00021858,2]
[311838531,1705447225905,154.13,0.0002192,2]
[311838532,1705447230280,195.7,0.0002174,2]
[311838533,1705447331529,156.08,0.00021929,2]
[311838534,1705447332328,543.80323094,0.0002174,7]
[311838535,1705447352350,1099.08,0.0002174,2]
[311838536,1705447354321,542.74100574,0.0002174,7]
[311838537,1705447359779,729.8,0.0001981,2]
[311838538,1705447383009,150.0,0.00021858,2]
[311838539,1705447507162,655.68,0.00021647,2]
[311838541,1705447661119,154.13,0.00021821,2]
[311838542,1705447662883,175.32847657,0.00021965,2]
[311838543,1705447673149,250.0,0.00021672,2]
[311838550,1705447778794,1072.32,0.00021684,2]
[311838551,1705447794079,157.95,0.00021673,2]
[311838552,1705447802189,176.96,0.00021673,2]
[311838554,1705447831519,-256.77,0.00022,2]
[311838555,1705447831529,-150.0,0.00022,2]
[311838556,1705447831539,-3143.53137679,0.00022058,2]
[311838557,1705447831549,-2567.76715598,0.00022073,2]
[311838558,1705447831578,-311.06238185,0.00022073,2]
[311838559,1705447831641,-125.2852641,0.00022073,2]
[311838560,1705447831652,-729.8,0.00022074,2]
[311838561,1705447831662,-692.19851741,0.000221,2]
[311838562,1705447831674,-157.65,0.00022132,2]
[311838563,1705447831684,-513.12,0.00022137,2]
[311838564,1705447831694,-732.1,0.00022223,2]
[311838565,1705447831704,-150.0,0.00022262,2]
[311838566,1705447831715,-150.0,0.00022262,2]
[311838567,1705447831725,-1270.46,0.00022264,2]
[311838568,1705447831736,-156.98,0.00022288,2]
[311838569,1705447831746,-723.86,0.00022348,2]
[311838570,1705447831756,-1103.9988527,0.00022362,2]
[311838571,1705447831766,-866.01779664,0.00022362,2]
[311838572,1705447831779,-1269.2528404,0.00022362,2]
[311838573,1705447831790,-160.3189589,0.00022362,2]
[311838574,1705447831799,-207.53906261,0.00022362,2]
[311838575,1705447831811,-254.46419645,0.00022362,2]
[311838576,1705447831821,-757.4204291,0.00022362,2]
[311838577,1705447831831,-3449.59604669,0.00022362,2]
[311838578,1705447831841,-273.81795193,0.00022362,2]
[311838580,1705447831851,-57.32183307,0.00022363,2]
[311838583,1705447831863,-318.4195,0.00022363,2]
[311838587,1705447831876,-264.84176947,0.00022363,2]
[311838590,1705447831886,-719.89,0.00022366,2]
[311838592,1705447831896,-157.65,0.00022405,2]
[311838595,1705447831905,-150.0,0.00022595,2]
[311838598,1705447831915,-1072.32,0.00022662,2]
[311838601,1705447831925,-157.65,0.00022678,2]
[311838605,1705447831935,-736.1,0.00022698,2]
[311838609,1705447831944,-177.5299,0.00022759,2]
[311838613,1705447831954,-1403.4305,0.00022759,2]
[311838616,1705447831963,-2500.0,0.00022759,2]
[311838619,1705447831973,-188.50252045,0.00022759,2]
[311838623,1705447831985,-811.49747955,0.00022759,2]
[311838626,1705447831994,-2126.96814358,0.00022798,2]
[311838629,1705447832005,-3155.74570487,0.00022798,2]
[311838632,1705447832017,-614.479575,0.00022798,2]
[311838636,1705447832028,-709.38363577,0.00022798,2]
[311838639,1705447832044,-814.15802409,0.00022798,2]
[311838641,1705447832055,-606.06166027,0.00022798,2]
[311838643,1705447832065,-734.55,0.000228,2]
[311838646,1705447832074,-223.38153868,0.000228,2]
[311838650,1705447832086,-499.76846132,0.000228,2]
[311838652,1705447832095,-404.83043937,0.000228,2]
[311838655,1705447832120,-316.16956063,0.000228,2]
[311838657,1705447832130,-652.80373178,0.00022857,2]
[311838659,1705447832142,-547.4688403,0.00022857,2]
[311838662,1705447832155,-239.94445224,0.00022857,2]
[311838663,1705447832165,-162.92120756,0.00022857,2]
[311838666,1705447832175,-207.58248204,0.00022858,2]
[311838668,1705447832196,-278.94209769,0.00022858,2]
[311838670,1705447832206,-3990.14084878,0.00022858,2]
[311838673,1705447832232,-279.18489901,0.00022858,2]
[311838674,1705447832243,-96349.16053918,0.00022859,2]
[311838675,1705447832256,-98177.02245706,0.00022859,2]
[311838676,1705447832268,-911.11649018,0.00022859,2]
[311838677,1705447832289,-1889.99004518,0.00022859,2]
[311838678,1705447832301,-98074.58295107,0.00022859,2]
[311838679,1705447832312,-271.18577363,0.00022898,2]
[311838680,1705447832322,-192.60373434,0.00022898,2]
[311838681,1705447832331,-733.77,0.00022898,2]
[311838682,1705447832341,-28465.2518,0.00022899,2]
[311838683,1705447832352,-100000.0,0.00022899,2]
[311838684,1705447832362,-553.1567,0.00022899,2]
[311838685,1705447832371,-4739.42337136,0.000229,2]
[311838686,1705447832381,-169.22902364,0.000229,2]
[311838687,1705447832391,-152.29968145,0.000229,2]
[311838688,1705447832403,-573.35412798,0.000229,2]
[311838689,1705447832413,-168.79154123,0.000229,2]
[311838690,1705447832423,-595.1779371,0.000229,2]
[311838691,1705447832433,-160.83536735,0.000229,2]
[311838692,1705447832442,-157.65,0.00022951,2]
[311838693,1705447832452,-154.13,0.00022958,2]
[311838694,1705447832462,-365.01915403,0.00022987,2]
[311838695,1705447832471,-365.01915403,0.0002299,2]
[311838696,1705447832481,-365.01915403,0.0002299,2]
[311838697,1705447832491,-2514.42586142,0.00022995,2]
[311838698,1705447832504,-101.01661047,0.00022995,2]
[311838699,1705447832513,-255.28226221,0.00022995,2]
[311838700,1705447832523,-196.93142177,0.00022995,2]
[311838702,1705447837742,-0.00100334,0.00022859,2]
[311838703,1705447837761,-158.99899666,0.00022859,2]
[311838704,1705447837770,-1198.91379601,0.000229,2]
[311838705,1705447837779,-328.1393389,0.00022995,2]
[311838706,1705447837788,-364.59644785,0.00022995,2]
[311838707,1705447837797,-587.81322623,0.00022995,2]
[311838708,1705447837806,-308.66623732,0.00022995,2]
[311838709,1705447837814,-288.74305767,0.00022995,2]
[311838710,1705447837824,-1904.88101016,0.00022995,2]
[311838711,1705447837832,-306.94907181,0.00022995,2]
[311838712,1705447837841,-2820.11441043,0.00022995,2]
[311838713,1705447837850,-223.7152768,0.00022995,2]
[311838714,1705447837859,-475.03562767,0.00022995,2]
[311838716,1705447837868,-2576.1,0.00022995,2]
[311838718,1705447837877,-155.0,0.00022995,2]
[311838720,1705447837886,-501.09834726,0.00022995,2]
[311838722,1705447837895,-256.04000001,0.00022995,2]
[311838724,1705447837905,-207.39597,0.00022995,2]
[311838726,1705447837914,-745.68030549,0.00022995,2]
[311838728,1705447837922,-2519.34700671,0.00022996,2]
[311838730,1705447837932,-522.18415358,0.00022997,2]
[311838732,1705447837942,-1743.9678759,0.00022997,2]
[311838734,1705447837952,-277.48596396,0.00022997,2]
[311838736,1705447837962,-203.876292,0.00022997,2]
[311838738,1705447837972,-23504.19784915,0.00022997,2]
[311838740,1705447837982,-1093.95113279,0.00022997,2]
[311838742,1705447837992,-446562.06433822,0.00022997,2]
[311838744,1705447838002,-151.40117,0.00022998,3]
[311838746,1705447838012,-151.40117,0.00022998,3]
[311838748,1705447838022,-151.40117,0.00022998,3]
[311838750,1705447838033,-151.40117,0.00022998,3]
[311838753,1705447838043,-151.40117,0.00022998,3]
[311838755,1705447838054,-151.40117,0.00022998,3]
[311838756,1705447838065,-151.40117,0.00022998,3]
[311838758,1705447838075,-151.40117,0.00022998,3]
[311838761,1705447838085,-151.40117,0.00022998,3]
[311838762,1705447838096,-151.40117,0.00022998,3]
[311838765,1705447838106,-151.40117,0.00022998,3]
[311838767,1705447838115,-151.40117,0.00022998,3]
[311838769,1705447838124,-151.40117,0.00022998,3]
[311838770,1705447838134,-151.40117,0.00022998,3]
[311838773,1705447838143,-151.40117,0.00022998,3]
[311838775,1705447838153,-151.40117,0.00022998,3]
[311838777,1705447838162,-151.40117,0.00022998,3]
[311838779,1705447838171,-151.40117,0.00022998,3]
[311838781,1705447838180,-151.40117,0.00022998,3]
[311838783,1705447838189,-151.40117,0.00022998,3]
[311838785,1705447838198,-151.40117,0.00022998,3]
[311838787,1705447838207,-151.40117,0.00022998,3]
[311838789,1705447838216,-151.40117,0.00022998,3]
[311838791,1705447838225,-151.40117,0.00022998,3]
[311838792,1705447838235,-151.40117,0.00022998,3]
[311838795,1705447838244,-151.40117,0.00022998,3]
[311838796,1705447838253,-151.40117,0.00022998,3]
[311838799,1705447838262,-151.40117,0.00022998,3]
[311838801,1705447838271,-151.40117,0.00022998,3]
[311838803,1705447838280,-151.40117,0.00022998,3]
[311838805,1705447838291,-151.40117,0.00022998,3]
[311838807,1705447838301,-151.40117,0.00022998,3]
[311838808,1705447838310,-151.40117,0.00022998,3]
[311838811,1705447838319,-150.32898599,0.00022998,3]
[311838813,1705447838328,-151.40117,0.00022998,3]
[311838815,1705447838337,-151.40117,0.00022998,3]
[311838817,1705447838347,-151.40117,0.00022998,3]
[311838819,1705447838356,-151.40117,0.00022998,3]
[311838821,1705447838364,-151.40117,0.00022998,3]
[311838822,1705447838373,-151.40117,0.00022998,3]
[311838825,1705447838383,-151.40117,0.00022998,3]
[311838844,1705447838565,-151.40117,0.00022998,3]
[311838847,1705447838576,-151.40117,0.00022998,3]
[311838849,1705447838586,-151.40117,0.00022998,3]
[311838851,1705447838597,-151.40117,0.00022998,3]
[311838853,1705447838606,-151.40117,0.00022998,3]
[311838854,1705447838619,-151.40117,0.00022998,3]
[311838856,1705447838630,-151.40117,0.00022998,3]
[311838859,1705447838643,-151.40117,0.00022998,3]
[311838860,1705447838654,-151.40117,0.00022998,3]
[311838863,1705447838664,-300.0,0.00022998,2]
[311838864,1705447838675,-391215.21286291,0.00022999,3]
[311838867,1705447838690,-459016.71132769,0.00022999,3]
[311838869,1705447838702,-13569.13379211,0.00022999,3]
[311838871,1705447838715,-1000.0,0.00022999,3]
[311838875,1705447838736,-5135.41692187,0.00022999,3]
[311838877,1705447838748,-475.25222268,0.00022999,3]
[311838884,1705447838807,-2705.67645439,0.00022999,3]
[311838886,1705447838820,-1581.061535,0.00022999,3]
[311838888,1705447838833,-5710.99876003,0.00022999,3]
[311838891,1705447838847,-948.92245727,0.00022999,3]
[311838893,1705447838860,-939.26609086,0.00022999,3]
[311839293,1705447842537,-288.4933002,0.000229,2]
[311839296,1705447842546,-113.22900578,0.00022999,3]
[311839311,1705447842679,-4369.5771668,0.00022999,3]
[311839329,1705447845756,-852.00839208,0.00022857,2]
[311839330,1705447845768,-1334.86427203,0.00022857,2]
[311839331,1705447845778,-169.43458277,0.00022859,2]
[311839332,1705447845787,-169.43458277,0.000229,2]
[311839333,1705447845796,-396.19738599,0.00022998,2]
[311839334,1705447845806,-14696.28596551,0.00022998,2]
[311839335,1705447845827,-7905.7478394,0.00022998,2]
[311839336,1705447845836,-17991.14075587,0.00022999,3]
[311839337,1705447845848,-9410.46485975,0.00022999,3]
[311839349,1705447878178,1519.96810911,0.00020247,2]
[311839350,1705447879011,1519.96810911,0.00020429,2]
[311839351,1705447879270,1519.96810911,0.00020694,2]
[311839352,1705447879598,1519.96810911,0.0002084,2]
[311839353,1705447879972,1519.96810911,0.00021215,2]
[311839354,1705447880231,1519.96810911,0.00021473,2]
[311839355,1705447880552,1519.96810911,0.00021675,2]
[311839356,1705448001341,1519.96810912,0.00021403,2]
[311839357,1705448001692,1519.96810912,0.00021655,2]
[311839358,1705448002022,1519.96810912,0.00021944,2]
[311839359,1705448021977,702.14,0.00020375,2]
[311839360,1705448186062,1767.60331455,0.0002199,2]
[311839361,1705448236949,153.09,0.00021685,2]
[311839362,1705448277331,176.96,0.00021678,2]
[311839363,1705448312105,975.86,0.00021651,2]
[311839364,1705448349737,166.84,0.00021614,2]
[311839365,1705448370305,1519.96810912,0.00021954,2]
[311839366,1705448402906,515.40790408,0.0002199,2]
[311839367,1705448434249,204.0,0.00021084,2]
[311839368,1705448451145,524.55,0.00021601,2]
[311839369,1705448489194,667.03,0.00019662,2]
[311839370,1705448489488,667.03,0.00021926,2]
[311839371,1705448613148,250.0,0.00021898,2]
[311839372,1705448641651,150.0,0.000219,2]
[311839373,1705448646872,176.23,0.000219,2]
[311839374,1705448655573,256.77,0.000219,2]
[311839375,1705448656736,581.76600082,0.0002199,2]
[311839376,1705448670889,155.0,0.0002199,2]
[311839377,1705448676679,250.23781752,0.0002199,2]
[311839378,1705448678463,170.67,0.0002158,2]
[311839379,1705448679894,301.19606247,0.0002199,2]
[311839380,1705448684286,2144.87693592,0.0002199,2]
[311839381,1705448718910,223.44,0.00021794,2]
[311839382,1705448756950,963.78,0.00021571,2]
[311839383,1705448757907,199.17071904,0.0002199,2]
[311839384,1705448793790,204.0,0.00021426,2]
[311839385,1705448917861,151.41,0.00025,15]
[311839386,1705448938065,600.32,0.00019677,2]
[311839387,1705448938320,600.32,0.00021941,2]
[311839388,1705449002675,200.00000001,0.000301,90]
[311839389,1705449017348,580.36,0.00021584,2]
[311839395,1705449031651,-155.0,0.00021992,2]
[311839396,1705449031661,-3620.5136731,0.00021993,2]
[311839397,1705449031670,-256.77,0.00022037,2]
[311839398,1705449031680,-250.0,0.00022172,2]
[311839399,1705449031689,-256.77,0.00022174,2]
[311839400,1705449031699,-170.67,0.000223,2]
[311839401,1705449031708,-256.77,0.00022311,2]
[311839402,1705449031718,-1519.96810913,0.00022386,2]
[311839403,1705449031727,-150.0,0.0002239,2]
[311839404,1705449031737,-268.65308328,0.00022391,2]
[311839405,1705449031757,-432.8139,0.00022391,2]
[311839406,1705449031769,-2289.28608915,0.00022391,2]
[311839407,1705449031780,-974.19748854,0.00022391,2]
[311839408,1705449031792,-66.84943903,0.00022391,2]
[311839409,1705449031802,-1261.43,0.00022391,2]
[311839410,1705449031811,-499.99,0.00022391,2]
[311839411,1705449031820,-754.26,0.00022396,2]
[311839412,1705449031831,-250.0,0.00022446,2]
[311839413,1705449031841,-150.0,0.00022448,2]
[311839414,1705449031851,-176.23,0.00022448,2]
[311839415,1705449031861,-509.46,0.00022448,2]
[311839416,1705449031871,-1519.96810913,0.00022516,2]
[311839417,1705449031881,-963.78,0.00022549,2]
[311839418,1705449031891,-847.2909,0.00022558,2]
[311839419,1705449031900,-1000.0,0.00022558,2]
[311839420,1705449031909,-2458.203,0.00022558,2]
[311839421,1705449031919,-2500.0,0.00022558,2]
[311839422,1705449031929,-1032.7859,0.00022558,2]
[311839423,1705449031938,-2155.71402277,0.00022558,2]
[311839424,1705449031947,-420.61314653,0.00022558,2]
[311839425,1705449031956,-150.0,0.00022568,2]
[311839426,1705449031965,-150.0,0.00022569,2]
[311839427,1705449031975,-150.0,0.00022575,2]
[311839428,1705449031984,-150.0,0.00022579,2]
[311839429,1705449031993,-150.0,0.00022583,2]
[311839430,1705449032002,-150.0,0.0002259,2]
[311839431,1705449032012,-150.0,0.00022593,2]
[311839432,1705449032025,-150.0,0.00022599,2]
[311839433,1705449032034,-150.0,0.00022602,2]
[311839434,1705449032043,-150.0,0.00022602,2]
[311839435,1705449032053,-150.0,0.00022615,2]
[311839436,1705449032062,-150.0,0.00022617,2]
[311839437,1705449032071,-150.0,0.00022623,2]
[311839439,1705449032080,-150.0,0.00022632,2]
[311839442,1705449032090,-313.44466476,0.00022633,2]
[311839444,1705449032100,-150.0,0.00022642,2]
[311839446,1705449032111,-356.27691967,0.00022649,2]
[311839448,1705449032121,-175.39494762,0.00022653,2]
[311839450,1705449032130,-346.51658349,0.00022654,2]
[311839451,1705449032139,-212.23385085,0.00022654,2]
[311839453,1705449032148,-409.12283997,0.00022654,2]
[311839455,1705449032157,-199.88703845,0.00022654,2]
[311839457,1705449032167,-150.0,0.00022654,2]
[311839459,1705449032177,-952.74744043,0.00022655,2]
[311839461,1705449032187,-223.7152768,0.00022656,2]
[311839463,1705449032196,-2820.11441043,0.00022656,2]
[311839465,1705449032205,-306.94907181,0.00022656,2]
[311839467,1705449032214,-1904.88101016,0.00022656,2]
[311839469,1705449032224,-308.66623732,0.00022656,2]
[311839471,1705449032233,-364.59644785,0.00022656,2]
[311839473,1705449032243,-587.81322623,0.00022656,2]